fUST/lending_fUST_20250803
["ID","MTS","AMOUNT","RATE_DAILY","PERIOD"]
[377019909,1754209832263,-12649.34751639,0.00027822,2]
[377019911,1754209832272,-17158.7563771,0.00027825,2]
[377019912,1754209832281,-443.47,0.00027825,10]
[377019914,1754209832291,-500.0,0.00027834,2]
[377019916,1754209832301,-500.0,0.00027834,2]
[377019918,1754209832310,-500.0,0.00027834,2]
[377019919,1754209832319,-500.0,0.00027834,2]
[377019920,1754209832329,-572.585615,0.00027834,2]
[377019922,1754209832338,-70808.85505983,0.00027835,2]
[377019934,1754209832464,-724.8731572,0.00027835,2]
[377019936,1754209832474,-3088.21478388,0.00027845,2]
[377020039,1754209837830,-1552.15,0.00027845,2]
[377020045,1754209837885,-1729.83077416,0.00027845,2]
[377020047,1754209837895,-1000.0,0.00027848,5]
[377020049,1754209837905,-724.87315716,0.00027851,2]
[377020051,1754209837914,-724.87315716,0.00027868,2]
[377020053,1754209837924,-724.87315716,0.00027884,2]
[377020055,1754209837933,-171.0,0.00027884,2]
[377020057,1754209837943,-44084.27385209,0.000279,2]
[377020059,1754209837954,-4533.80382641,0.000279,2]
[377020061,1754209837965,-662.17669481,0.000279,2]
[377020063,1754209837977,-1591.16679297,0.000279,2]
[377020065,1754209837988,-270.08982124,0.000279,2]
[377020068,1754209838000,-752.55185998,0.000279,2]
[377020070,1754209838012,-3242.72431476,0.000279,2]
[377020072,1754209838025,-3144.18313553,0.000279,2]
[377020074,1754209838037,-22961.998,0.000279,2]
[377020094,1754209839966,-76829.87799977,0.000279,2]
[377020095,1754209840021,-737.91395628,0.000279,2]
[377020096,1754209840033,-4310.94994201,0.000279,2]
[377020097,1754209840044,-767.091838,0.000279,2]
[377020405,1754209842962,-11485.08717455,0.000279,2]
[377020407,1754209842972,-724.87315716,0.000279,2]
[377020409,1754209842981,-151.0,0.00027918,2]
[377020411,1754209842991,-151.0,0.00027918,2]
[377020413,1754209843000,-151.0,0.00027918,2]
[377020415,1754209843010,-151.0,0.00027918,2]
[377020417,1754209843020,-151.0,0.00027918,2]
[377020419,1754209843029,-151.0,0.00027918,2]
[377020421,1754209843039,-151.0,0.00027918,2]
[377020423,1754209843048,-151.0,0.00027918,2]
[377020425,1754209843057,-151.0,0.00027918,2]
[377020427,1754209843070,-151.0,0.00027918,2]
[377020429,1754209843079,-151.0,0.00027918,2]
[377020432,1754209843089,-151.0,0.00027918,2]
[377020435,1754209843098,-56.14328915,0.00027918,2]
[377020438,1754209843110,-94.85671085,0.00027918,2]
[377020441,1754209843120,-151.0,0.00027918,2]
[377020444,1754209843129,-151.0,0.00027918,2]
[377020446,1754209843139,-10.14328915,0.00027918,2]
[377020570,1754209846014,-140.85671085,0.00027918,2]
[377020571,1754209846024,-151.0,0.00027918,2]
[377020572,1754209846033,-151.0,0.00027918,2]
[377020573,1754209846042,-151.0,0.00027918,2]
[377020574,1754209846051,-151.0,0.00027918,2]
[377020575,1754209846060,-160.0,0.00027919,2]
[377020576,1754209846069,-160.0,0.00027919,2]
[377020577,1754209846078,-231.62108626,0.00027919,2]
[377020578,1754209846087,-160.0,0.0002792,2]
[377020579,1754209846097,-216.32054205,0.0002792,2]
[377020580,1754209846106,-176.85921428,0.0002792,2]
[377020581,1754209846117,-362.33930169,0.0002792,2]
[377020582,1754209846132,-302.67550701,0.0002792,2]
[377020583,1754209846142,-167.91,0.00027925,3]
[377020584,1754209846153,-221.21701703,0.00027925,3]
[377020585,1754209846168,-720.68298297,0.00027925,3]
[377020586,1754209846177,-470.95,0.00027925,3]
[377020587,1754209846186,-235.47,0.00027925,3]
[377020588,1754209846195,-706.44,0.00027925,3]
[377020589,1754209846204,-369.56,0.00027925,10]
[377020590,1754209846213,-307.97,0.00027925,10]
[377020591,1754209846223,-370.82542831,0.00027934,2]
[377020592,1754209846232,-152.19390297,0.00027934,2]
[377020593,1754209846242,-151.0,0.00027934,2]
[377020594,1754209846251,-151.41538642,0.00027934,2]
[377020595,1754209846260,-151.0,0.00027934,2]
[377020596,1754209846269,-151.0,0.00027934,2]
[377020597,1754209846278,-3222.53,0.00027934,2]
[377020598,1754209846287,-151.00537637,0.00027934,2]
[377020599,1754209846295,-151.0,0.00027934,2]
[377020600,1754209846304,-500.0,0.00027934,2]
[377020601,1754209846314,-198.21964236,0.00027934,2]
[377020602,1754209846323,-198.0,0.00027934,2]
[377020603,1754209846333,-4690.46144341,0.00027935,2]
[377020604,1754209846342,-130880.49183719,0.00027935,2]
[377020605,1754209846353,-1675.87999981,0.00027935,2]
[377020620,1754209892317,200.0,0.00027646,120]
[377020622,1754209951145,200.0,0.00027373,120]
[377020623,1754209964814,2000.2,0.00028233,30]
[377020624,1754210011583,200.0,0.0002848,120]
[377020625,1754210071352,200.0,0.00028471,120]
[377020626,1754210082714,320.6113708,0.00030136,120]
[377020628,1754210190360,150.5,0.00027925,120]
[377020629,1754210190807,150.5,0.00027915,120]
[377020630,1754210191274,150.5,0.00027905,120]
[377020633,1754210238556,161.284452,0.00013699,2]
[377020634,1754210251080,200.0,0.00029338,120]
[377020635,1754210276231,406.0086,0.00027397,120]
[377020637,1754210311313,200.0,0.00027938,120]
[377020640,1754210358315,500.0,0.0003,120]
[377020641,1754210371319,200.0,0.00028404,120]
[377020642,1754210384960,611.0,0.0003,120]
[377020647,1754210431427,200.0,0.00029304,120]
[377020650,1754210491571,200.0,0.00029309,120]
[377020652,1754210552008,200.0,0.00029104,120]
[377020653,1754210585973,180.1826056,0.00023062,2]
[377020654,1754210612099,200.0,0.00027103,120]
[377020656,1754210671388,200.0,0.00027655,120]
[377020657,1754210731398,200.0,0.00028213,120]
[377020658,1754210740118,-161.284452,0.00023182,2]
[377020659,1754210740141,-150.0,0.000232,2]
[377020660,1754210740165,-150.0,0.00025106,2]
[377020661,1754210740186,-150.0,0.00025835,2]
[377020662,1754210740209,-179.194785,0.00026251,2]
[377020663,1754210740230,-222.490524,0.00026367,2]
[377020664,1754210740251,-157.84267822,0.00027104,2]
[377020665,1754210740271,-300.0,0.00027204,2]
[377020666,1754210740291,-265.48725014,0.00027204,2]
[377020669,1754210791101,200.0,0.00027781,120]
[377020670,1754210814093,-180.99109483,0.00027204,2]
[377020671,1754210838722,326.02,0.00026027,120]
[377020672,1754210851530,200.0,0.00027279,120]
[377020673,1754210897935,296.19,0.00026027,120]
[377020674,1754210899733,222.14,0.00026027,120]
[377020675,1754210901915,222.14,0.00026027,120]
[377020676,1754210909539,150.5,0.0002794,120]
[377020677,1754210911108,150.5,0.0002793,120]
[377020678,1754210911579,200.0,0.00027862,120]
[377020679,1754210911608,150.5,0.0002792,120]
[377020680,1754210971355,200.0,0.00026958,120]
[377020684,1754211031919,200.0,0.00028825,120]
[377020792,1754211036540,-181.08845907,0.000253,2]
[377020794,1754211036549,-285.1,0.00026958,7]
[377020796,1754211036558,-166.91759274,0.00027,2]
[377020798,1754211036570,-33.08240726,0.00027,2]
[377020800,1754211036579,-300.0,0.00027204,2]
[377020802,1754211036588,-1200.0,0.00027204,2]
[377020804,1754211036599,-300.0,0.00027204,2]
[377020806,1754211036609,-5000.0,0.00027205,3]
[377020808,1754211036618,-430.545078,0.000273,2]
[377020810,1754211036627,-430.545078,0.000273,2]
[377020812,1754211036637,-430.545078,0.000273,2]
[377020815,1754211036758,-285.1,0.00027649,7]
[377020816,1754211036767,-300.18663337,0.00027818,2]
[377020817,1754211036777,-152.9105974,0.00027818,2]
[377020818,1754211036787,-155.67764342,0.00027818,2]
[377020819,1754211036797,-500.0,0.00027818,2]
[377020820,1754211036807,-151.0,0.00027818,2]
[377020821,1754211036816,-250.0,0.00027818,2]
[377020822,1754211036825,-216.32054205,0.00027822,2]
[377020823,1754211036834,-841.87402298,0.00027822,2]
[377020824,1754211036843,-160.0,0.00027822,2]
[377020825,1754211036853,-160.0,0.00027822,2]
[377020826,1754211036862,-160.0,0.00027822,2]
[377020827,1754211036874,-231.62108626,0.00027822,2]
[377020828,1754211036890,-9189.34996809,0.00027825,2]
[377020829,1754211036899,-256.64,0.00027825,10]
[377020830,1754211036909,-213.86,0.00027825,10]
[377020831,1754211036918,-559.76303933,0.00027834,2]
[377020832,1754211036928,-164.33151602,0.00027834,2]
[377020833,1754211036938,-603.13895543,0.00027834,2]
[377020834,1754211036948,-500.0,0.00027834,2]
[377020835,1754211036959,-500.0,0.00027834,2]
[377020836,1754211036969,-500.0,0.00027834,2]
[377020837,1754211036980,-500.0,0.00027834,2]
[377020838,1754211036989,-539.66625763,0.00027834,2]
[377020839,1754211036999,-500.0,0.00027834,2]
[377020840,1754211037010,-500.0,0.00027834,2]
[377020841,1754211037019,-500.0,0.00027834,2]
[377020842,1754211037028,-500.0,0.00027834,2]
[377020843,1754211037039,-500.0,0.00027834,2]
[377020844,1754211037048,-500.0,0.00027834,2]
[377020845,1754211037059,-378.29052468,0.00027834,2]
[377020846,1754211037069,-500.0,0.00027834,2]
[377020847,1754211037078,-475.75737799,0.00027834,2]
[377020848,1754211037089,-3129.89,0.00027834,2]
[377020849,1754211037099,-28269.36406658,0.00027835,2]
[377020850,1754211037113,-67600.00632093,0.00027835,2]
[377020851,1754211037122,-200.0,0.00027835,10]
[377020852,1754211037131,-200.0,0.00027835,10]
[377020853,1754211037142,-200.0,0.00027835,10]
[377020854,1754211037151,-200.0,0.00027835,10]
[377020855,1754211037160,-200.0,0.00027835,10]
[377020856,1754211037170,-200.0,0.00027835,10]
[377020857,1754211037179,-200.0,0.00027835,10]
[377020858,1754211037189,-200.0,0.00027835,10]
[377020859,1754211037198,-6677.11873739,0.00027835,2]
[377020860,1754211037208,-500.0,0.00027845,2]
[377020861,1754211037217,-1016.9453976,0.00027845,2]
[377020862,1754211037227,-9189.34996809,0.00027863,2]
[377020863,1754211037236,-605.41,0.00027863,3]
[377020864,1754211037245,-302.7,0.00027863,3]
[377020865,1754211037255,-151.35,0.00027863,3]
[377020866,1754211037264,-454.08,0.00027863,3]
[377020867,1754211037274,-604.4526024,0.00027873,5]
[377020868,1754211037285,-501.33640783,0.00027873,5]
[377020869,1754211037294,-500.0,0.00027873,5]
[377020870,1754211037303,-500.0,0.00027873,5]
[377020871,1754211037312,-500.69756271,0.00027873,2]
[377020872,1754211037322,-500.0,0.00027873,5]
[377020873,1754211037334,-500.0,0.00027873,5]
[377020874,1754211037343,-632.32046967,0.00027873,5]
[377020875,1754211037355,-500.0,0.00027873,5]
[377020876,1754211037365,-500.0,0.00027873,5]
[377020877,1754211037374,-500.0,0.00027873,5]
[377020878,1754211037386,-500.0,0.00027873,5]
[377020879,1754211037396,-501.15255493,0.00027873,5]
[377020880,1754211037406,-500.0,0.00027873,5]
[377020881,1754211037416,-500.0,0.00027873,5]
[377020882,1754211037427,-500.0,0.00027873,5]
[377020883,1754211037437,-506.40901224,0.00027873,5]
[377020884,1754211037446,-500.0,0.00027873,5]
[377020885,1754211037455,-461.13518659,0.00027873,5]
[377020886,1754211037464,-500.01948025,0.00027873,5]
[377020887,1754211037474,-500.0,0.00027873,5]
[377020888,1754211037485,-500.79473964,0.00027873,5]
[377020889,1754211037495,-500.0,0.00027873,5]
[377020890,1754211037504,-500.0,0.00027873,5]
[377020891,1754211037514,-500.0,0.00027873,5]
[377020892,1754211037523,-500.0,0.00027873,5]
[377020893,1754211037532,-500.0,0.00027873,5]
[377020894,1754211037543,-500.0,0.00027873,5]
[377020895,1754211037553,-500.0,0.00027873,5]
[377020896,1754211037564,-163.22690498,0.00027873,5]
[377020897,1754211037575,-502.43638085,0.00027873,5]
[377020898,1754211037585,-501.57607859,0.00027873,5]
[377020899,1754211037598,-500.0,0.00027873,5]
[377020900,1754211037607,-500.67139671,0.00027873,5]
[377020901,1754211037616,-500.56168595,0.00027873,5]
[377020902,1754211037626,-500.0,0.00027873,5]
[377020903,1754211037636,-500.0,0.00027873,5]
[377020905,1754211037645,-500.0,0.00027873,5]
[377020906,1754211037655,-4348.67515484,0.00027881,2]
[377020907,1754211037664,-823.98590735,0.000279,18]
[377020908,1754211037677,-1016.9453976,0.00027918,2]
[377020909,1754211037687,-460.95174316,0.00027921,2]
[377020910,1754211037698,-527.12062288,0.00027921,2]
[377020911,1754211037708,-160.0,0.00027921,2]
[377020912,1754211037718,-467.73586178,0.00027934,2]
[377020913,1754211037730,-151.94558431,0.00027934,2]
[377020914,1754211037741,-151.0,0.00027934,2]
[377020915,1754211037751,-151.0,0.00027934,2]
[377020916,1754211037762,-151.0,0.00027934,2]
[377020917,1754211037774,-282.78914679,0.00027934,2]
[377020918,1754211037783,-500.0,0.00027934,2]
[377020919,1754211037793,-14684.44015531,0.00027935,2]
[377020936,1754211038185,-150723.85927069,0.00027935,2]
[377020938,1754211038195,-675.27518619,0.00027935,2]
[377020939,1754211038205,-3836.02372101,0.00027945,2]
[377020940,1754211038215,-500.0,0.00027945,2]
[377020941,1754211038225,-500.0,0.00027945,2]
[377020943,1754211038235,-505.99016583,0.00027945,2]
[377020944,1754211038244,-461.31636894,0.00027945,10]
[377020945,1754211038254,-460.0,0.00027945,10]
[377020946,1754211038263,-460.0,0.00027945,10]
[377020947,1754211038273,-460.0,0.00027945,10]
[377020948,1754211038283,-461.59803318,0.00027945,10]
[377020949,1754211038297,-461.77358757,0.00027945,10]
[377020950,1754211038307,-461.96778615,0.00027945,10]
[377020951,1754211038317,-460.0,0.00027945,10]
[377020953,1754211038327,-214.97575419,0.00027945,10]
[377020955,1754211038337,-463.07916972,0.00027945,10]
[377020957,1754211038352,-460.0,0.00027945,10]
[377020960,1754211038362,-461.42101218,0.00027945,10]
[377020962,1754211038372,-522.90711099,0.00027945,10]
[377020964,1754211038381,-151.0,0.00027945,7]
[377020966,1754211038391,-460.0,0.00027945,10]
[377020968,1754211038401,-151.0,0.00027945,7]
[377020971,1754211038412,-151.0,0.00027945,7]
[377020972,1754211038423,-461.73826329,0.00027945,10]
[377020975,1754211038433,-151.0,0.00027945,7]
[377020977,1754211038444,-151.0,0.00027945,7]
[377020979,1754211038458,-460.0,0.00027945,10]
[377020981,1754211038467,-460.0,0.00027945,10]
[377020983,1754211038480,-460.0,0.00027945,10]
[377020985,1754211038490,-460.0,0.00027945,10]
[377020987,1754211038500,-460.0,0.00027945,10]
[377020989,1754211038509,-463.18129463,0.00027945,10]
[377020991,1754211038519,-460.0,0.00027945,10]
[377020993,1754211038529,-460.0,0.00027945,10]
[377020995,1754211038539,-460.0,0.00027945,10]
[377020997,1754211038548,-460.0,0.00027945,10]
[377020999,1754211038558,-460.0,0.00027945,10]
[377021001,1754211038567,-460.0,0.00027945,10]
[377021003,1754211038577,-460.0,0.00027945,10]
[377021006,1754211038587,-460.0,0.00027945,10]
[377021008,1754211038597,-460.0,0.00027945,10]
[377021010,1754211038607,-460.0,0.00027945,10]
[377021012,1754211038617,-460.0,0.00027945,10]
[377021014,1754211038626,-460.0,0.00027945,10]
[377021016,1754211038636,-460.0,0.00027945,10]
[377021018,1754211038645,-154.77667182,0.00027945,10]
[377021020,1754211038655,-151.0,0.00027945,7]
[377021022,1754211038665,-460.0,0.00027945,10]
[377021024,1754211038674,-460.0,0.00027945,3]
[377021026,1754211038684,-460.0,0.00027945,10]
[377021028,1754211038694,-460.0,0.00027945,10]
[377021030,1754211038704,-460.0,0.00027945,10]
[377021032,1754211038713,-460.0,0.00027945,10]
[377021034,1754211038723,-460.0,0.00027945,10]
[377021036,1754211038733,-460.0,0.00027945,10]
[377021038,1754211038743,-460.0,0.00027945,10]
[377021040,1754211038753,-379.82014047,0.00027945,10]
[377021042,1754211038763,-461.5299484,0.00027945,10]
[377021044,1754211038773,-460.0,0.00027945,10]
[377021046,1754211038783,-460.0,0.00027945,10]
[377021048,1754211038795,-460.0,0.00027945,10]
[377021050,1754211038804,-493.08103368,0.00027945,10]
[377021053,1754211038814,-189.54193095,0.00027945,10]
[377021054,1754211038824,-460.75462584,0.00027945,10]
[377021057,1754211038834,-460.0,0.00027945,10]
[377021059,1754211038844,-463.23394632,0.00027945,10]
[377021061,1754211038853,-460.0,0.00027945,10]
[377021063,1754211038863,-460.0,0.00027945,10]
[377021065,1754211038875,-460.0,0.00027945,10]
[377021067,1754211038886,-504.91378807,0.00027945,10]
[377021069,1754211038895,-460.0,0.00027945,10]
[377021071,1754211038905,-462.3023024,0.00027945,10]
[377021073,1754211038916,-460.0,0.00027945,10]
[377021075,1754211038925,-460.17465749,0.00027945,10]
[377021077,1754211038934,-460.0,0.00027945,10]
[377021079,1754211038944,-460.0,0.00027945,10]
[377021081,1754211038954,-460.0,0.00027945,10]
[377021083,1754211038964,-460.0,0.00027945,10]
[377021085,1754211038973,-211.75552178,0.00027945,10]
[377021087,1754211038983,-460.0,0.00027945,10]
[377021089,1754211038992,-460.0,0.00027945,10]
[377021091,1754211039002,-460.30695093,0.00027945,10]
[377021092,1754211039011,-151.0,0.00027945,7]
[377021093,1754211039020,-151.0,0.00027945,7]
[377021094,1754211039029,-151.0,0.00027945,7]
[377021095,1754211039039,-151.0,0.00027945,7]
[377021096,1754211039049,-151.0,0.00027945,7]
[377021097,1754211039058,-151.0,0.00027945,7]
[377021098,1754211039068,-460.0,0.00027945,10]
[377021099,1754211039077,-460.0,0.00027945,10]
[377021100,1754211039086,-306.01891526,0.00027945,10]
[377021101,1754211039095,-460.0,0.00027945,10]
[377021102,1754211039104,-380.39733687,0.00027945,10]
[377021103,1754211039113,-246.85015323,0.00027945,10]
[377021104,1754211039122,-460.0,0.00027945,10]
[377021105,1754211039132,-460.0,0.00027945,10]
[377021108,1754211039247,-460.0,0.00027945,10]
[377021110,1754211039258,-460.0,0.00027945,10]
[377021112,1754211039267,-460.0,0.00027945,10]
[377021114,1754211039276,-460.0,0.00027945,10]
[377021117,1754211039287,-460.0,0.00027945,10]
[377021119,1754211039296,-460.0,0.00027945,10]
[377021121,1754211039306,-460.0,0.00027945,10]
[377021123,1754211039315,-460.0,0.00027945,10]
[377021125,1754211039325,-460.98030872,0.00027945,10]
[377021127,1754211039334,-460.0,0.00027945,10]
[377021129,1754211039344,-460.0,0.00027945,10]
[377021131,1754211039353,-460.0,0.00027945,10]
[377021132,1754211039364,-489.30773794,0.00027945,10]
[377021134,1754211039374,-462.14480825,0.00027945,10]
[377021137,1754211039384,-460.0,0.00027945,10]
[377021139,1754211039393,-460.0,0.00027945,10]
[377021141,1754211039404,-460.0,0.00027945,10]
[377021143,1754211039413,-460.0,0.00027945,10]
[377021145,1754211039423,-460.0,0.00027945,10]
[377021147,1754211039431,-460.0,0.00027945,10]
[377021149,1754211039441,-460.0,0.00027945,10]
[377021151,1754211039450,-460.0,0.00027945,10]
[377021153,1754211039459,-460.0,0.00027945,10]
[377021155,1754211039469,-460.0,0.00027945,10]
[377021157,1754211039478,-460.0,0.00027945,10]
[377021158,1754211039488,-460.0,0.00027945,10]
[377021160,1754211039497,-461.49463714,0.00027945,10]
[377021162,1754211039506,-462.51208578,0.00027945,10]
[377021164,1754211039515,-460.0,0.00027945,10]
[377021166,1754211039525,-460.0,0.00027945,10]
[377021168,1754211039535,-175.42975143,0.00027945,10]
[377021170,1754211039544,-460.0,0.00027945,10]
[377021172,1754211039554,-460.0,0.00027945,10]
[377021174,1754211039563,-460.0,0.00027945,10]
[377021176,1754211039572,-466.66839271,0.00027945,10]
[377021178,1754211039582,-460.0,0.00027945,10]
[377021180,1754211039591,-460.0,0.00027945,10]
[377021182,1754211039600,-460.0,0.00027945,10]
[377021184,1754211039610,-462.04936641,0.00027945,10]
[377021186,1754211039619,-460.0,0.00027945,10]
[377021188,1754211039628,-460.0,0.00027945,10]
[377021190,1754211039638,-460.0,0.00027945,10]
[377021192,1754211039647,-460.0,0.00027945,10]
[377021194,1754211039657,-460.0,0.00027945,10]
[377021196,1754211039666,-460.0,0.00027945,10]
[377021198,1754211039675,-460.0,0.00027945,10]
[377021200,1754211039685,-533.64347881,0.00027945,10]
[377021201,1754211039694,-461.15638232,0.00027945,10]
[377021203,1754211039703,-460.72239291,0.00027945,10]
[377021205,1754211039713,-460.0,0.00027945,10]
[377021207,1754211039722,-460.0,0.00027945,10]
[377021210,1754211039733,-460.0,0.00027945,10]
[377021213,1754211039742,-460.0,0.00027945,10]
[377021215,1754211039751,-460.0,0.00027945,10]
[377021218,1754211039760,-460.0,0.00027945,10]
[377021222,1754211039769,-460.0,0.00027945,10]
[377021225,1754211039778,-464.64670381,0.00027945,10]
[377021227,1754211039788,-460.0,0.00027945,10]
[377021229,1754211039797,-460.0,0.00027945,10]
[377021231,1754211039807,-460.0,0.00027945,10]
[377021233,1754211039816,-460.0,0.00027945,10]
[377021235,1754211039827,-460.0,0.00027945,10]
[377021237,1754211039837,-460.0,0.00027945,10]
[377021239,1754211039848,-461.29939314,0.00027945,10]
[377021241,1754211039857,-460.0,0.00027945,10]
[377021243,1754211039866,-460.0,0.00027945,10]
[377021245,1754211039880,-460.0,0.00027945,10]
[377021247,1754211039890,-460.0,0.00027945,10]
[377021249,1754211039899,-460.0,0.00027945,10]
[377021251,1754211039908,-460.0,0.00027945,10]
[377021253,1754211039919,-460.0,0.00027945,10]
[377021255,1754211039929,-460.0,0.00027945,10]
[377021257,1754211039938,-460.0,0.00027945,10]
[377021259,1754211039947,-460.0,0.00027945,10]
[377021261,1754211039957,-460.0,0.00027945,10]
[377021263,1754211039966,-463.43922968,0.00027945,10]
[377021265,1754211039975,-423.85893049,0.00027945,10]
[377021267,1754211039985,-460.0,0.00027945,10]
[377021269,1754211039993,-460.0,0.00027945,10]
[377021271,1754211040002,-460.0,0.00027945,10]
[377021273,1754211040012,-460.0,0.00027945,10]
[377021275,1754211040021,-460.0,0.00027945,10]
[377021277,1754211040031,-460.0,0.00027945,10]
[377021279,1754211040040,-460.0,0.00027945,10]
[377021281,1754211040050,-173.200277,0.00027945,7]
[377021283,1754211040059,-460.0,0.00027945,10]
[377021285,1754211040069,-460.0,0.00027945,10]
[377021287,1754211040078,-460.0,0.00027945,10]
[377021289,1754211040088,-460.0,0.00027945,10]
[377021291,1754211040097,-464.79128366,0.00027945,10]
[377021293,1754211040106,-460.0,0.00027945,10]
[377021295,1754211040115,-460.0,0.00027945,10]
[377021297,1754211040124,-460.0,0.00027945,10]
[377021299,1754211040133,-460.0,0.00027945,10]
[377021301,1754211040142,-460.0,0.00027945,10]
[377021303,1754211040150,-460.0,0.00027945,10]
[377021305,1754211040160,-460.0,0.00027945,10]
[377021306,1754211040169,-310.03574645,0.00027945,10]
[377021308,1754211040179,-460.0,0.00027945,10]
[377021310,1754211040188,-460.0,0.00027945,10]
[377021312,1754211040197,-460.0,0.00027945,5]
[377021314,1754211040207,-460.0,0.00027945,5]
[377021316,1754211040216,-462.95321976,0.00027945,5]
[377021318,1754211040226,-154.373387,0.00027945,7]
[377021320,1754211040236,-154.373387,0.00027945,7]
[377021322,1754211040245,-154.373387,0.00027945,7]
[377021324,1754211040255,-154.373387,0.00027945,7]
[377021326,1754211040264,-154.373387,0.00027945,7]
[377021328,1754211040274,-154.373387,0.00027945,7]
[377021330,1754211040283,-460.0,0.00027945,10]
[377021332,1754211040292,-460.0,0.00027945,10]
[377021334,1754211040302,-154.373387,0.00027945,7]
[377021336,1754211040312,-154.373387,0.00027945,7]
[377021338,1754211040321,-154.373387,0.00027945,7]
[377021340,1754211040331,-154.373387,0.00027945,7]
[377021342,1754211040341,-154.373387,0.00027945,7]
[377021344,1754211040350,-502.43696013,0.00027945,10]
[377021346,1754211040359,-154.373387,0.00027945,7]
[377021348,1754211040368,-464.68071274,0.00027945,10]
[377021350,1754211040377,-460.0,0.00027945,10]
[377021352,1754211040386,-460.0,0.00027945,10]
[377021354,1754211040396,-460.0,0.00027945,10]
[377021356,1754211040405,-460.0,0.00027945,10]
[377021358,1754211040415,-460.0,0.00027945,10]
[377021360,1754211040424,-460.0,0.00027945,10]
[377021361,1754211040433,-460.0,0.00027945,10]
[377021363,1754211040443,-460.0,0.00027945,10]
[377021365,1754211040451,-460.0,0.00027945,10]
[377021367,1754211040461,-460.0,0.00027945,10]
[377021369,1754211040470,-151.0,0.00027945,7]
[377021371,1754211040480,-460.0,0.00027945,10]
[377021373,1754211040489,-460.0,0.00027945,10]
[377021375,1754211040499,-460.0,0.00027945,10]
[377021377,1754211040508,-460.0,0.00027945,10]
[377021379,1754211040518,-460.0,0.00027945,10]
[377021381,1754211040527,-460.0,0.00027945,10]
[377021383,1754211040537,-460.0,0.00027945,10]
[377021385,1754211040546,-172.115948,0.00027945,10]
[377021387,1754211040555,-460.0,0.00027945,10]
[377021389,1754211040565,-460.0,0.00027945,10]
[377021391,1754211040574,-460.0,0.00027945,10]
[377021393,1754211040584,-464.32282813,0.00027945,10]
[377021395,1754211040593,-460.0,0.00027945,10]
[377021397,1754211040602,-460.0,0.00027945,10]
[377021399,1754211040612,-460.0,0.00027945,10]
[377021401,1754211040622,-460.0,0.00027945,10]
[377021403,1754211040631,-460.0,0.00027945,10]
[377021405,1754211040640,-408.88176805,0.00027945,10]
[377021407,1754211040650,-460.0,0.00027945,7]
[377021409,1754211040659,-460.0,0.00027945,10]
[377021411,1754211040669,-460.0,0.00027945,10]
[377021413,1754211040678,-460.0,0.00027945,10]
[377021415,1754211040687,-460.0,0.00027945,10]
[377021417,1754211040696,-460.0,0.00027945,10]
[377021419,1754211040705,-460.0,0.00027945,10]
[377021421,1754211040714,-460.0,0.00027945,10]
[377021422,1754211040723,-460.0,0.00027945,10]
[377021425,1754211040733,-460.0,0.00027945,10]